[Event "GER-ch Rapid Women 2020"]
[Site "Plochingen"]
[Date "2020.09.19"]
[Round "5.5"]
[White "Osmanodja, Filiz"]
[Black "Stangl, Anita"]
[Result "1-0"]
[ECO "C11"]
[WhiteElo "2256"]
[BlackElo "2005"]
[Annotator "NA"]
[PlyCount "57"]
[EventDate "2020.09.19"]
[EventType "swiss"]
[EventCountry "GER"]
[SourceTitle "playchess.com"]
[Source "ChessBase"]
[SourceQuality "1"]
[TimeControl "900+10"]

1. e4 {[%emt 0:00:00]} e6 {[%emt 0:00:00]} 2. d4 {[%emt 0:00:00]} d5 {[%emt 0:00:00]} 3. Nc3 {[%emt 0:00:00]} Nf6 {[%emt 0:00:00]} 4. e5 {[%emt 0:00:00]} Nfd7 {[%emt 0:00:00]} 5. f4 {[%emt 0:00:00]} c5 {[%emt 0:00:00]} 6. Nf3 {[%emt 0:00:00]} Nc6 {[%emt 0:00:00]} 7. Be3 {[%emt 0:00:00]} Qb6 {[%emt 0:00:02]} 8. Na4 {[%emt 0:00:28]} Qa5+ {[%emt 0:00:01]} 9. c3 {[%emt 0:00:01]} cxd4 {[%emt 0:00:01]} 10. b4 {[%emt 0:00:07]} Nxb4 {[%emt 0:00:01]} 11. cxb4 {[%emt 0:00:04]} Bxb4+ {[%emt 0:00:01]} 12. Bd2 {[%emt 0:00:02]} Bxd2+ {[%emt 0:00:02]} 13. Nxd2 {[%emt 0:00:04]} b5 {[%emt 0:00:01]} 14. Nb2 {[%emt 0:00:25]} Qc3 {[%emt 0:00:02]} 15. Nd3 {[%emt 0:03:35]} Nb6 {[%emt 0:00:06]} 16. Kf2 {[%emt 0:04:13]} Nc4 {[%emt 0:03:00]} 17. Nb3 {[%emt 0:00:16]} Ne3 {[%emt 0:00:35]} 18. Qd2 {[%emt 0:00:43]} Nc4 {[%emt 0:01:12]} 19. Qe2 {[%emt 0:02:05]} Nxe5 {[%emt 0:04:22]} 20. fxe5 {[%emt 0:00:19]} Qc7 {[%emt 0:00:03]} 21. Rc1 {[%emt 0:00:12]} Qb6 {[%emt 0:00:06]} 22. Ndc5 {[%emt 0:01:06]} f6 {[%emt 0:00:09]} 23. Qxb5+ {[%emt 0:00:09]} Ke7 {[%emt 0:00:19]} 24. exf6+ {[%emt 0:00:42]} gxf6 {[%emt 0:00:01]} 25. Nxd4 {[%emt 0:00:25]} Qd6 {[%emt 0:00:14]} 26. g3 {[%emt 0:01:08]} e5 {[%emt 0:00:41]} 27. Qb7+ {[%emt 0:01:26]} Bxb7 {[%emt 0:01:41]} 28. Nf5+ {[%emt 0:00:02]} Kd8 {[%emt 0:00:01]} 29. Nxb7+ {[%emt 0:00:10]} 1-0

[Event "GER-ch Rapid Women 2020"]
[Site "Plochingen"]
[Date "2020.09.19"]
[Round "5.6"]
[White "Birkholz, Olga"]
[Black "Wulf, Constanze"]
[Result "1-0"]
[ECO "B20"]
[WhiteElo "2018"]
[BlackElo "1817"]
[Annotator "NA"]
[PlyCount "77"]
[EventDate "2020.09.19"]
[EventType "swiss"]
[EventCountry "GER"]
[SourceTitle "playchess.com"]
[Source "ChessBase"]
[SourceQuality "1"]
[TimeControl "900+10"]

1. e4 {[%emt 0:00:00]} c5 {[%emt 0:00:00]} 2. g3 {[%emt 0:00:00]} d6 {[%emt 0:00:28]} 3. Bg2 {[%emt 0:00:00]} Nc6 {[%emt 0:00:03]} 4. b3 {[%emt 0:00:00]} Nf6 {[%emt 0:00:36]} 5. Bb2 {[%emt 0:00:01]} g6 {[%emt 0:01:15]} 6. Nc3 {[%emt 0:00:27]} Bg7 {[%emt 0:00:02]} 7. Nge2 {[%emt 0:00:39]} Bd7 {[%emt 0:02:35]} 8. Nd5 {[%emt 0:02:18]} e6 {[%emt 0:03:05]} 9. Ne3 {[%emt 0:00:14]} Qc7 {[%emt 0:01:31]} 10. O-O {[%emt 0:01:19]} h5 {[%emt 0:00:35]} 11. d4 {[%emt 0:03:33]} cxd4 {[%emt 0:03:03]} 12. Nxd4 {[%emt 0:00:04]} Nxd4 {[%emt 0:00:06]} 13. Bxd4 {[%emt 0:00:08]} O-O {[%emt 0:00:15]} 14. Qd3 {[%emt 0:03:17]} Rfd8 {[%emt 0:01:16]} 15. Rad1 {[%emt 0:00:14]} Bc6 {[%emt 0:00:48]} 16. c4 {[%emt 0:00:24]} a5 {[%emt 0:00:33]} 17. f4 {[%emt 0:00:31]} Rab8 {[%emt 0:01:15]} 18. Qc3 {[%emt 0:00:43]} Ne8 {[%emt 0:00:04]} 19. e5 {[%emt 0:02:04]} Bxg2 {[%emt 0:00:15]} 20. Nxg2 {[%emt 0:00:09]} d5 {[%emt 0:00:13]} 21. cxd5 {[%emt 0:00:10]} Qxc3 {[%emt 0:00:14]} 22. Bxc3 {[%emt 0:00:01]} Rxd5 {[%emt 0:00:06]} 23. Rxd5 {[%emt 0:00:07]} exd5 {[%emt 0:00:01]} 24. Rd1 {[%emt 0:00:35]} Nc7 {[%emt 0:00:05]} 25. Bxa5 {[%emt 0:00:06]} b6 {[%emt 0:00:01]} 26. Bb4 {[%emt 0:00:09]} Bf8 {[%emt 0:00:08]} 27. Bd6 {[%emt 0:00:26]} Rb7 {[%emt 0:00:18]} 28. Ne3 {[%emt 0:00:07]} Nb5 {[%emt 0:00:18]} 29. Bxf8 {[%emt 0:00:06]} Kxf8 {[%emt 0:00:13]} 30. Rxd5 {[%emt 0:00:01]} Nc3 {[%emt 0:00:05]} 31. Rd8+ {[%emt 0:00:19]} Ke7 {[%emt 0:00:06]} 32. Ra8 {[%emt 0:00:05]} Rd7 {[%emt 0:00:15]} 33. Nc4 {[%emt 0:00:18]} b5 {[%emt 0:00:31]} 34. Nd6 {[%emt 0:00:03]} Rc7 {[%emt 0:00:08]} 35. Kf2 {[%emt 0:00:21]} Ke6 {[%emt 0:00:06]} 36. Ke3 {[%emt 0:01:17]} b4 {[%emt 0:00:03]} 37. Ra6 {[%emt 0:00:05]} Kd7 {[%emt 0:00:18]} 38. Nc4 {[%emt 0:00:01]} Nd5+ {[%emt 0:00:26]} 39. Kd4 {[%emt 0:00:10]} 1-0

[Event "GER-ch Rapid Women 2020"]
[Site "Plochingen"]
[Date "2020.09.21"]
[Round "6.6"]
[White "Wulf, Constanze"]
[Black "Morio, Estelle"]
[Result "1-0"]
[ECO "B07"]
[WhiteElo "1817"]
[BlackElo "1837"]
[Annotator "NA RC"]
[PlyCount "63"]
[EventDate "2020.09.19"]
[EventType "swiss"]
[EventCountry "GER"]
[SourceTitle "playchess.com"]
[Source "ChessBase"]
[SourceQuality "1"]
[TimeControl "900+10"]

1. e4 {[%emt 0:00:17]} d6 {[%emt 0:00:00]} 2. d4 {[%emt 0:00:04]} Nf6 {[%emt 0:00:00]} 3. Nc3 {[%emt 0:00:02]} Nbd7 {[%emt 0:00:00]} 4. g4 {[%emt 0:00:06]} h6 {[%emt 0:00:02]} 5. Be3 {[%emt 0:00:04]} e5 {[%emt 0:00:03]} 6. f3 {[%emt 0:00:16] B07: Pirc Defence: Miscellaneous Systems.} c6 {[%emt 0:00:17]} 7. Qd2 {[%emt 0:00:11]} b5 {[%emt 0:00:16]} 8. O-O-O {[%emt 0:00:09] [#]} a5 $146 {[%emt 0:00:23]} (8... Qa5 $11) ({Predecessor:} 8... b4 9. Nce2 Qa5 10. Kb1 d5 11. Ng3 dxe4 12. Bc4 Nb6 13. Bb3 Be7 14. dxe5 Qxe5 {1-0 (24) Dutreeuw,M (2384)-Manouck,T (2342) Paris 2006}) 9. h4 {[%emt 0:00:51]} Be7 {[%emt 0:01:33]} 10. Nh3 {[%emt 0:01:24]} a4 {[%emt 0:04:33]} 11. g5 {[%emt 0:02:19]} hxg5 {[%emt 0:00:41]} (11... Nh5 $1 $14) 12. hxg5 {[%emt 0:01:37]} Nh5 {[%emt 0:00:34]} 13. Nf2 {[%emt 0:00:55]} g6 {[%emt 0:00:19]} 14. Bh3 {[%emt 0:01:03]} Rb8 {[%emt 0:02:29]} 15. Bg4 {[%emt 0:02:30]} Nb6 {[%emt 0:00:36]} 16. dxe5 {[%emt 0:03:08]} Nc4 {[%emt 0:02:09] Double Attack} 17. Qd4 {[%emt 0:01:11]} c5 {[%emt 0:01:17]} 18. Qd3 {[%emt 0:00:56]} Nxe5 {[%emt 0:00:06]} 19. Qe2 {[%emt 0:00:44]} Bxg5 {[%emt 0:01:45]} 20. Kb1 $16 {[%emt 0:00:16]} (20. Bxc8 $18 Bxe3+ 21. Qxe3 Qxc8 22. Ng4) 20... Bxe3 {[%emt 0:00:11]} 21. Qxe3 {[%emt 0:00:01]} Qf6 {[%emt 0:00:35]} 22. Bxh5 {[%emt 0:00:05]} Rxh5 {[%emt 0:00:20]} 23. Rxh5 {[%emt 0:00:13]} gxh5 {[%emt 0:00:01]} 24. f4 {[%emt 0:00:09]} Ng4 {[%emt 0:00:20]} 25. Nxg4 {[%emt 0:00:08]} hxg4 {[%emt 0:00:06]} 26. e5 {[%emt 0:00:05]} dxe5 {[%emt 0:00:07]} 27. fxe5 {[%emt 0:00:05]} Qc6 {[%emt 0:00:10]} 28. Qg5 {[%emt 0:00:05]} Qc7 {[%emt 0:00:33]} 29. Nd5 {[%emt 0:00:04]} Qb7 {[%emt 0:00:11]} 30. Nf6+ {[%emt 0:00:08]} Ke7 {[%emt 0:00:04]} 31. Nh7+ {[%emt 0:00:15]} Ke8 {[%emt 0:00:05]} 32. Qd8# {[%emt 0:00:02]} 1-0

[Event "GER-ch Rapid Women 2020"]
[Site "Plochingen"]
[Date "2020.09.20"]
[Round "8.1"]
[White "Paehtz, Elisabeth"]
[Black "Voicu-Jagodzinsky, Carmen"]
[Result "1-0"]
[ECO "B23"]
[WhiteElo "2472"]
[BlackElo "2247"]
[Annotator "ChessBase"]
[PlyCount "127"]
[EventDate "2020.09.19"]
[EventType "swiss"]
[EventCountry "GER"]
[SourceTitle "playchess.com"]
[Source "ChessBase"]
[SourceQuality "1"]
[TimeControl "900+10"]

1. e4 {[%emt 0:00:00]} c5 {[%emt 0:00:00]} 2. Nc3 {[%emt 0:00:00]} Nc6 {[%emt 0:00:00]} 3. Bb5 {[%emt 0:00:00]} g6 {[%emt 0:00:00]} 4. Bxc6 {[%emt 0:00:00]} dxc6 {[%emt 0:00:00]} 5. d3 {[%emt 0:00:03]} Bg7 {[%emt 0:00:08]} 6. f4 {[%emt 0:00:14]} e5 {[%emt 0:02:07]} 7. Nf3 {[%emt 0:00:42]} exf4 {[%emt 0:01:51]} 8. Bxf4 {[%emt 0:00:02]} h6 {[%emt 0:00:44]} 9. Qd2 {[%emt 0:00:25]} g5 {[%emt 0:02:06]} 10. Bg3 {[%emt 0:02:40]} Ne7 {[%emt 0:00:14]} 11. h4 {[%emt 0:01:51]} g4 {[%emt 0:00:08]} 12. Ng1 {[%emt 0:00:29]} Ng6 {[%emt 0:01:01]} 13. h5 {[%emt 0:00:33]} Ne5 {[%emt 0:00:04]} 14. Nge2 {[%emt 0:00:15]} Be6 {[%emt 0:01:22]} 15. Bh4 {[%emt 0:01:11]} Qd6 {[%emt 0:01:10]} 16. Qf4 {[%emt 0:00:06]} Bd7 {[%emt 0:01:23]} 17. O-O {[%emt 0:02:10]} O-O {[%emt 0:00:50]} 18. Bf6 {[%emt 0:01:22]} Bxf6 {[%emt 0:00:13]} 19. Qxf6 {[%emt 0:00:01]} Qxf6 {[%emt 0:00:00]} 20. Rxf6 {[%emt 0:00:01]} Kg7 {[%emt 0:00:01]} 21. Rf4 {[%emt 0:00:29]} a5 {[%emt 0:00:51]} 22. Na4 {[%emt 0:00:22]} Rae8 {[%emt 0:00:56]} 23. Nxc5 {[%emt 0:00:05]} Bc8 {[%emt 0:00:00]} 24. Ng3 {[%emt 0:00:13]} b6 {[%emt 0:01:07]} 25. Na4 {[%emt 0:00:02]} b5 {[%emt 0:00:20]} 26. Nc5 {[%emt 0:00:02]} Rd8 {[%emt 0:00:28]} 27. Raf1 {[%emt 0:00:09]} f6 {[%emt 0:00:09]} 28. b3 {[%emt 0:00:31]} b4 {[%emt 0:00:04]} 29. Ne2 {[%emt 0:00:30]} Rde8 {[%emt 0:01:09]} 30. d4 {[%emt 0:00:49]} Nd7 {[%emt 0:00:02]} 31. Rxg4+ {[%emt 0:00:22]} Kh7 {[%emt 0:00:02]} 32. Nxd7 {[%emt 0:00:27]} Bxd7 {[%emt 0:00:01]} 33. Rgf4 {[%emt 0:00:02]} f5 {[%emt 0:00:08]} 34. Ng3 {[%emt 0:00:45]} Rg8 {[%emt 0:00:32]} 35. Nxf5 {[%emt 0:00:35]} Bxf5 {[%emt 0:00:33]} 36. exf5 {[%emt 0:00:01]} Re2 {[%emt 0:00:13]} 37. R1f2 {[%emt 0:00:01]} Re1+ {[%emt 0:00:01]} 38. Kh2 {[%emt 0:00:01]} Rg5 {[%emt 0:00:01]} 39. g4 {[%emt 0:00:24]} Kg7 {[%emt 0:00:01]} 40. Kg3 {[%emt 0:00:22]} Kf7 {[%emt 0:00:07]} 41. Kf3 {[%emt 0:00:11]} Rg8 {[%emt 0:00:03]} 42. Re2 {[%emt 0:00:27]} Rf1+ {[%emt 0:00:15]} 43. Kg3 {[%emt 0:00:10]} Rg1+ {[%emt 0:00:15]} 44. Kh3 {[%emt 0:00:04]} Rh1+ {[%emt 0:00:07]} 45. Kg2 {[%emt 0:00:01]} Ra1 {[%emt 0:00:04]} 46. Rfe4 {[%emt 0:00:17]} Rxa2 {[%emt 0:00:12]} 47. Kf3 {[%emt 0:00:07]} Rd8 {[%emt 0:00:21]} 48. Re7+ {[%emt 0:00:21]} Kf8 {[%emt 0:00:24]} 49. R7e6 {[%emt 0:00:56]} Rxd4 {[%emt 0:00:17]} 50. Rxh6 {[%emt 0:00:05]} Ra1 {[%emt 0:00:19]} 51. Rf6+ {[%emt 0:00:15]} Kg7 {[%emt 0:00:13]} 52. Rxc6 {[%emt 0:00:34]} Rf1+ {[%emt 0:00:08]} 53. Kg2 {[%emt 0:00:17]} Rff4 {[%emt 0:00:12]} 54. Rg6+ {[%emt 0:00:02]} Kf7 {[%emt 0:00:01]} 55. Kg3 {[%emt 0:00:05]} Rf1 {[%emt 0:00:24]} 56. h6 {[%emt 0:00:11]} Rd8 {[%emt 0:00:33]} 57. h7 {[%emt 0:00:21]} Rg1+ {[%emt 0:00:12]} 58. Rg2 {[%emt 0:00:16]} Re1 {[%emt 0:00:05]} 59. Rh2 {[%emt 0:00:21]} Re3+ {[%emt 0:00:06]} 60. Kf4 {[%emt 0:00:09]} Ree8 {[%emt 0:00:10]} 61. Re6 {[%emt 0:00:08]} Rh8 {[%emt 0:00:03]} 62. g5 {[%emt 0:00:09]} Rd4+ {[%emt 0:00:04]} 63. Re4 {[%emt 0:00:04]} Rd1 {[%emt 0:00:01]} 64. g6+ {[%emt 0:00:07]} 1-0

[Event "GER-ch Rapid Women 2020"]
[Site "Plochingen"]
[Date "2020.09.20"]
[Round "8.2"]
[White "Muetsch, Annmarie"]
[Black "Osmanodja, Filiz"]
[Result "1/2-1/2"]
[ECO "B23"]
[WhiteElo "2226"]
[BlackElo "2256"]
[Annotator "ChessBase"]
[PlyCount "218"]
[EventDate "2020.09.19"]
[EventType "swiss"]
[EventCountry "GER"]
[SourceTitle "playchess.com"]
[Source "ChessBase"]
[SourceQuality "1"]
[TimeControl "900+10"]

1. e4 {[%emt 0:00:00]} c5 {[%emt 0:00:00]} 2. Nc3 {[%emt 0:00:00]} d6 {[%emt 0:00:07]} 3. d4 {[%emt 0:00:00]} cxd4 {[%emt 0:00:13]} 4. Qxd4 {[%emt 0:00:03]} a6 {[%emt 0:00:14]} 5. b3 {[%emt 0:00:30]} Nc6 {[%emt 0:00:07]} 6. Qd2 {[%emt 0:00:02]} Nf6 {[%emt 0:00:26]} 7. Bb2 {[%emt 0:00:11]} e5 {[%emt 0:00:19]} 8. Nge2 {[%emt 0:00:20]} Be7 {[%emt 0:00:07]} 9. g3 {[%emt 0:00:46]} O-O {[%emt 0:04:51]} 10. Bg2 {[%emt 0:00:07]} Ng4 {[%emt 0:01:47]} 11. Nd5 {[%emt 0:04:15]} Bg5 {[%emt 0:00:16]} 12. f4 {[%emt 0:01:37]} exf4 {[%emt 0:00:39]} 13. gxf4 {[%emt 0:00:04]} Bh6 {[%emt 0:02:29]} 14. Qc3 {[%emt 0:04:42]} Ne7 {[%emt 0:02:38]} 15. Nxe7+ {[%emt 0:01:03]} Qxe7 {[%emt 0:00:02]} 16. Qg3 {[%emt 0:00:33]} f5 {[%emt 0:00:55]} 17. h3 {[%emt 0:00:48]} Nf6 {[%emt 0:00:01]} 18. e5 {[%emt 0:00:13]} dxe5 {[%emt 0:01:22]} 19. Bxe5 {[%emt 0:00:27]} Nd7 {[%emt 0:00:03]} 20. Bd4 {[%emt 0:00:13]} Re8 {[%emt 0:00:15]} 21. Bf3 {[%emt 0:00:33]} Qd6 {[%emt 0:01:04]} 22. Rd1 {[%emt 0:01:34]} Qxf4 {[%emt 0:00:03]} 23. Qxf4 {[%emt 0:00:25]} Bxf4 {[%emt 0:00:04]} 24. Bd5+ {[%emt 0:00:17]} Kh8 {[%emt 0:00:01]} 25. Kf2 {[%emt 0:00:07]} Be5 {[%emt 0:00:06]} 26. Be3 {[%emt 0:00:17]} Nf6 {[%emt 0:00:06]} 27. Bf3 {[%emt 0:00:07]} Ne4+ {[%emt 0:00:25]} 28. Kg2 {[%emt 0:00:04]} Be6 {[%emt 0:00:24]} 29. Nf4 {[%emt 0:00:08]} Bxf4 {[%emt 0:00:22]} 30. Bxf4 {[%emt 0:00:02]} Rac8 {[%emt 0:00:17]} 31. c4 {[%emt 0:00:15]} b5 {[%emt 0:00:00]} 32. Bxe4 {[%emt 0:00:11]} fxe4 {[%emt 0:00:05]} 33. cxb5 {[%emt 0:00:10]} Rc2+ {[%emt 0:00:10]} 34. Kg3 {[%emt 0:00:09]} axb5 {[%emt 0:00:06]} 35. Rhe1 {[%emt 0:00:11]} Bf5 {[%emt 0:00:12]} 36. Rd5 {[%emt 0:00:13]} Bg6 {[%emt 0:00:27]} 37. Rxb5 {[%emt 0:00:08]} Rxa2 {[%emt 0:00:02]} 38. Rb7 {[%emt 0:00:13]} Rb2 {[%emt 0:00:20]} 39. b4 {[%emt 0:00:12]} h5 {[%emt 0:00:13]} 40. h4 {[%emt 0:00:02]} Rb3+ {[%emt 0:00:06]} 41. Re3 {[%emt 0:00:04]} Rb1 {[%emt 0:00:08]} 42. b5 {[%emt 0:00:14]} Rg1+ {[%emt 0:00:13]} 43. Kh2 {[%emt 0:00:01]} Rf1 {[%emt 0:00:06]} 44. Kg3 {[%emt 0:00:20]} Rg1+ {[%emt 0:00:00]} 45. Kh2 {[%emt 0:00:08]} Rf1 {[%emt 0:00:05]} 46. Kg3 {[%emt 0:00:02]} Rf8 {[%emt 0:00:28]} 47. Be5 {[%emt 0:00:05]} R8f3+ {[%emt 0:00:10]} 48. Rxf3 {[%emt 0:00:02]} Rxf3+ {[%emt 0:00:01]} 49. Kg2 {[%emt 0:00:04]} Bf7 {[%emt 0:00:10]} 50. b6 {[%emt 0:00:31]} Rf5 {[%emt 0:00:08]} 51. Rb8+ {[%emt 0:00:21]} Kh7 {[%emt 0:00:14]} 52. b7 {[%emt 0:00:20]} Rxe5 {[%emt 0:00:07]} 53. Rh8+ {[%emt 0:00:04]} Kxh8 {[%emt 0:00:03]} 54. b8=Q+ {[%emt 0:00:03]} Re8 {[%emt 0:00:05]} 55. Qf4 {[%emt 0:00:11]} Kg8 {[%emt 0:00:27]} 56. Qe3 {[%emt 0:00:02]} Bg6 {[%emt 0:00:09]} 57. Qb3+ {[%emt 0:00:15]} Kh7 {[%emt 0:00:03]} 58. Kf2 {[%emt 0:00:23]} e3+ {[%emt 0:00:22]} 59. Ke2 {[%emt 0:00:02]} Re4 {[%emt 0:00:12]} 60. Qb5 {[%emt 0:00:16]} Re8 {[%emt 0:00:13]} 61. Qg5 {[%emt 0:00:05]} Re4 {[%emt 0:00:03]} 62. Qb5 {[%emt 0:00:12]} Rxh4 {[%emt 0:00:08]} 63. Kxe3 {[%emt 0:00:02]} Rh1 {[%emt 0:00:05]} 64. Qd5 {[%emt 0:00:08]} Re1+ {[%emt 0:00:04]} 65. Kf2 {[%emt 0:00:02]} Re4 {[%emt 0:00:04]} 66. Kg3 {[%emt 0:00:06]} Rg4+ {[%emt 0:00:07]} 67. Kh3 {[%emt 0:00:04]} Kh6 {[%emt 0:00:05]} 68. Qd2+ {[%emt 0:00:03]} Kh7 {[%emt 0:00:05]} 69. Qd5 {[%emt 0:00:03]} Ra4 {[%emt 0:00:24]} 70. Qg5 {[%emt 0:00:09]} Ra3+ {[%emt 0:00:05]} 71. Kh4 {[%emt 0:00:06]} Ra1 {[%emt 0:00:18]} 72. Qd5 {[%emt 0:00:07]} Re1 {[%emt 0:00:05]} 73. Kh3 {[%emt 0:00:14]} Re2 {[%emt 0:00:07]} 74. Kg3 {[%emt 0:00:06]} Kh6 {[%emt 0:00:06]} 75. Qc5 {[%emt 0:00:09]} Re1 {[%emt 0:00:38]} 76. Qd4 {[%emt 0:00:20]} Re4 {[%emt 0:00:13]} 77. Qd2+ {[%emt 0:00:04]} Kh7 {[%emt 0:00:00]} 78. Qd5 {[%emt 0:00:05]} Rg4+ {[%emt 0:00:18]} 79. Kh3 {[%emt 0:00:03]} Rf4 {[%emt 0:00:02]} 80. Kg3 {[%emt 0:00:06]} Rb4 {[%emt 0:00:04]} 81. Kh3 {[%emt 0:00:10]} Rb2 {[%emt 0:00:18]} 82. Kg3 {[%emt 0:00:09]} Kh6 {[%emt 0:00:11]} 83. Qd4 {[%emt 0:00:15]} Rb3+ {[%emt 0:00:12]} 84. Kh4 {[%emt 0:00:16]} Rd3 {[%emt 0:00:16]} 85. Qf4+ {[%emt 0:00:05]} Kh7 {[%emt 0:00:01]} 86. Kg5 {[%emt 0:00:21]} Rd1 {[%emt 0:00:18]} 87. Qf3 {[%emt 0:00:40]} Rg1+ {[%emt 0:00:08]} 88. Kh4 {[%emt 0:00:07]} Rg4+ {[%emt 0:00:09]} 89. Kh3 {[%emt 0:00:01]} Be4 {[%emt 0:00:06]} 90. Qf2 {[%emt 0:00:16]} Kh6 {[%emt 0:00:13]} 91. Qd2+ {[%emt 0:00:09]} Kg6 {[%emt 0:00:10]} 92. Qd6+ {[%emt 0:00:09]} Kh7 {[%emt 0:00:08]} 93. Qe5 {[%emt 0:00:19]} Bg2+ {[%emt 0:00:11]} 94. Kh2 {[%emt 0:00:00]} Kh6 {[%emt 0:00:16]} 95. Qe3+ {[%emt 0:00:01]} Rg5 {[%emt 0:00:10]} 96. Qf4 {[%emt 0:00:18]} Kg6 {[%emt 0:00:14]} 97. Qd6+ {[%emt 0:00:09]} Kh7 {[%emt 0:00:04]} 98. Qf4 {[%emt 0:00:04]} Kh6 {[%emt 0:00:10]} 99. Qd6+ {[%emt 0:00:07]} Rg6 {[%emt 0:00:07]} 100. Qf4+ {[%emt 0:00:03]} Rg5 {[%emt 0:00:08]} 101. Qd6+ {[%emt 0:00:10]} Kh7 {[%emt 0:00:05]} 102. Qf4 {[%emt 0:00:09]} Rg4 {[%emt 0:00:07]} 103. Qf5+ {[%emt 0:00:03]} Kh6 {[%emt 0:00:07]} 104. Qe6+ {[%emt 0:00:05]} Kg5 {[%emt 0:00:26]} 105. Qe5+ {[%emt 0:00:10]} Kh6 {[%emt 0:00:12]} 106. Qe3+ {[%emt 0:00:07]} Kh7 {[%emt 0:00:07]} 107. Qe5 {[%emt 0:00:05]} Kh6 {[%emt 0:00:14]} 108. Qe3+ {[%emt 0:00:10]} Rg5 {[%emt 0:00:08]} 109. Qf4 {[%emt 0:00:08]} Kg6 {[%emt 0:00:12]} 1/2-1/2

[Event "GER-ch Rapid Women 2020"]
[Site "Plochingen"]
[Date "2020.09.20"]
[Round "8.3"]
[White "Gheng, Simona"]
[Black "Papp, Sarah"]
[Result "1-0"]
[ECO "C03"]
[WhiteElo "2014"]
[BlackElo "2327"]
[Annotator "ChessBase"]
[PlyCount "87"]
[EventDate "2020.09.19"]
[EventType "swiss"]
[EventCountry "GER"]
[SourceTitle "playchess.com"]
[Source "ChessBase"]
[SourceQuality "1"]
[TimeControl "900+10"]

1. e4 {[%emt 0:00:00]} e6 {[%emt 0:00:00]} 2. d4 {[%emt 0:00:00]} d5 {[%emt 0:00:00]} 3. Nd2 {[%emt 0:00:00]} Be7 {[%emt 0:00:00]} 4. c3 {[%emt 0:00:11]} c5 {[%emt 0:00:21]} 5. exd5 {[%emt 0:00:10]} Qxd5 {[%emt 0:00:22]} 6. Ngf3 {[%emt 0:00:02]} Nf6 {[%emt 0:00:26]} 7. Bc4 {[%emt 0:00:17]} Qh5 {[%emt 0:00:06]} 8. Nf1 {[%emt 0:01:19]} cxd4 {[%emt 0:00:12]} 9. Ng3 {[%emt 0:00:07]} Qc5 {[%emt 0:00:08]} 10. Qxd4 {[%emt 0:00:03]} Nc6 {[%emt 0:00:25]} 11. Qxc5 {[%emt 0:00:07]} Bxc5 {[%emt 0:00:02]} 12. O-O {[%emt 0:00:02]} O-O {[%emt 0:00:13]} 13. Bg5 {[%emt 0:00:23]} h6 {[%emt 0:00:41]} 14. Bxf6 {[%emt 0:00:04]} gxf6 {[%emt 0:00:02]} 15. Ne4 {[%emt 0:00:06]} Be7 {[%emt 0:00:03]} 16. Rad1 {[%emt 0:00:03]} Na5 {[%emt 0:01:15]} 17. Bb5 {[%emt 0:00:41]} a6 {[%emt 0:00:15]} 18. Be2 {[%emt 0:01:37]} e5 {[%emt 0:00:58]} 19. Nd6 {[%emt 0:01:32]} Be6 {[%emt 0:00:10]} 20. b4 {[%emt 0:00:19]} Rfd8 {[%emt 0:00:45]} 21. Ne4 {[%emt 0:00:33]} Nc4 {[%emt 0:00:34]} 22. Rfe1 {[%emt 0:01:05]} Rac8 {[%emt 0:00:25]} 23. Rxd8+ {[%emt 0:00:29]} Rxd8 {[%emt 0:00:10]} 24. h3 {[%emt 0:00:24]} a5 {[%emt 0:01:51]} 25. g4 {[%emt 0:01:08]} Ra8 {[%emt 0:02:20]} 26. Bxc4 {[%emt 0:01:45]} Bxc4 {[%emt 0:00:05]} 27. a3 {[%emt 0:00:01]} Rd8 {[%emt 0:00:24]} 28. bxa5 {[%emt 0:01:12]} h5 {[%emt 0:01:12]} 29. Nh4 {[%emt 0:00:16]} hxg4 {[%emt 0:01:24]} 30. Nf5 {[%emt 0:00:12]} Kf8 {[%emt 0:00:40]} 31. hxg4 {[%emt 0:00:14]} Be6 {[%emt 0:02:04]} 32. Rb1 {[%emt 0:01:33]} Bd5 {[%emt 0:00:11]} 33. f3 {[%emt 0:00:26]} Ra8 {[%emt 0:00:27]} 34. Nxe7 {[%emt 0:00:18]} Kxe7 {[%emt 0:00:03]} 35. Rb5 {[%emt 0:00:16]} Bc6 {[%emt 0:00:04]} 36. Rc5 {[%emt 0:00:03]} Rg8 {[%emt 0:01:00]} 37. Kf2 {[%emt 0:01:53]} Bxe4 {[%emt 0:00:48]} 38. fxe4 {[%emt 0:00:01]} Rxg4 {[%emt 0:00:01]} 39. Rc7+ {[%emt 0:00:41]} Ke6 {[%emt 0:00:06]} 40. Rxb7 {[%emt 0:00:01]} Rxe4 {[%emt 0:00:02]} 41. Rb6+ {[%emt 0:00:14]} Kf5 {[%emt 0:00:09]} 42. Rb4 {[%emt 0:00:01]} Rxb4 {[%emt 0:01:16]} 43. cxb4 {[%emt 0:00:01]} Ke6 {[%emt 0:00:02]} 44. a6 {[%emt 0:00:08]} 1-0

[Event "GER-ch Rapid Women 2020"]
[Site "Plochingen"]
[Date "2020.09.20"]
[Round "8.4"]
[White "Frey, Alisa"]
[Black "Skibbe, Diana"]
[Result "0-1"]
[ECO "C42"]
[WhiteElo "2087"]
[BlackElo "1991"]
[Annotator "ChessBase"]
[PlyCount "66"]
[EventDate "2020.09.19"]
[EventType "swiss"]
[EventCountry "GER"]
[SourceTitle "playchess.com"]
[Source "ChessBase"]
[SourceQuality "1"]
[TimeControl "900+10"]

1. e4 {[%emt 0:00:00]} e5 {[%emt 0:00:00]} 2. Nf3 {[%emt 0:00:00]} Nf6 {[%emt 0:00:00]} 3. Nc3 {[%emt 0:00:00]} d6 {[%emt 0:00:00]} 4. Bc4 {[%emt 0:00:29]} Be7 {[%emt 0:00:00]} 5. d3 {[%emt 0:00:11]} c6 {[%emt 0:00:00]} 6. a4 {[%emt 0:00:25]} h6 {[%emt 0:00:14]} 7. h3 {[%emt 0:00:22]} O-O {[%emt 0:00:17]} 8. O-O {[%emt 0:00:18]} Nbd7 {[%emt 0:00:04]} 9. a5 {[%emt 0:00:41]} Re8 {[%emt 0:00:06]} 10. Re1 {[%emt 0:00:46]} Nf8 {[%emt 0:00:05]} 11. Ne2 {[%emt 0:00:18]} Ng6 {[%emt 0:00:22]} 12. Ng3 {[%emt 0:01:04]} Bf8 {[%emt 0:00:09]} 13. c3 {[%emt 0:00:24]} d5 {[%emt 0:00:08]} 14. Bb3 {[%emt 0:01:05]} Qc7 {[%emt 0:00:49]} 15. Qc2 {[%emt 0:01:32]} Be6 {[%emt 0:00:18]} 16. d4 {[%emt 0:00:28]} exd4 {[%emt 0:00:37]} 17. Nxd4 {[%emt 0:00:12]} dxe4 {[%emt 0:02:13]} 18. Nxe6 {[%emt 0:00:08]} fxe6 {[%emt 0:00:06]} 19. Nxe4 {[%emt 0:00:09]} Nd5 {[%emt 0:00:07]} 20. Ng3 {[%emt 0:00:40]} Ngf4 {[%emt 0:00:36]} 21. Qe4 {[%emt 0:00:54]} Bc5 {[%emt 0:00:30]} 22. c4 {[%emt 0:00:32]} Nxh3+ {[%emt 0:00:15]} 23. Kf1 {[%emt 0:01:05]} Nxf2 {[%emt 0:00:12]} 24. Qh4 {[%emt 0:01:03]} Rf8 {[%emt 0:01:25]} 25. Ke2 {[%emt 0:00:42]} Nf4+ {[%emt 0:00:42]} 26. Bxf4 {[%emt 0:00:25]} Rxf4 {[%emt 0:00:02]} 27. Qh5 {[%emt 0:00:20]} Qd6 {[%emt 0:00:35]} 28. Bc2 {[%emt 0:00:25]} Rd8 {[%emt 0:00:12]} 29. Rad1 {[%emt 0:02:27]} Nxd1 {[%emt 0:00:08]} 30. Rxd1 {[%emt 0:00:02]} Rd4 {[%emt 0:00:16]} 31. Rxd4 {[%emt 0:02:13]} Qxd4 {[%emt 0:00:06]} 32. Ne4 {[%emt 0:00:07]} Qe3+ {[%emt 0:00:11]} 33. Kf1 {[%emt 0:00:05]} Rf8+ {[%emt 0:00:03]} 0-1